fUSD/lending_fUSD_20250622
["ID","MTS","AMOUNT","RATE_DAILY","PERIOD"]
[366920842,1750572649495,-490.0,0.00019178,2]
[366920843,1750572649504,-679.18,0.00019178,2]
[366920844,1750572649518,-728.9,0.00019178,2]
[366920845,1750572649528,-679.18,0.00019178,2]
[366920846,1750572649538,-490.0,0.00019178,2]
[366920847,1750572649547,-679.18,0.00019178,2]
[366920848,1750572649559,-490.0,0.00019178,2]
[366920849,1750572649568,-490.0,0.00019178,2]
[366920850,1750572649578,-679.18,0.00019178,2]
[366920851,1750572649590,-490.0,0.00019178,2]
[366920852,1750572649600,-679.18,0.00019178,2]
[366920853,1750572649609,-679.18,0.00019178,2]
[366920854,1750572649619,-679.18,0.00019178,2]
[366920855,1750572649628,-679.18,0.00019178,2]
[366920856,1750572649638,-490.0,0.00019178,2]
[366920857,1750572649648,-2803.78,0.00019178,2]
[366920858,1750572649661,-490.0,0.00019178,2]
[366920859,1750572649670,-490.0,0.00019178,2]
[366920860,1750572649681,-3188.41,0.00019178,2]
[366920861,1750572649694,-3188.41,0.00019178,2]
[366920862,1750572649704,-497.12,0.00019178,2]
[366920863,1750572649713,-3188.41,0.00019178,2]
[366920864,1750572649723,-3188.41,0.00019178,2]
[366920865,1750572649733,-3188.41,0.00019178,2]
[366920866,1750572649743,-490.0,0.00019178,2]
[366920867,1750572649753,-3188.41,0.00019178,2]
[366920868,1750572649762,-3188.41,0.00019178,2]
[366920869,1750572649773,-2785.69,0.00019178,2]
[366920870,1750572649783,-490.0,0.00019178,2]
[366920871,1750572649793,-490.0,0.00019178,2]
[366920872,1750572649803,-3188.41,0.00019178,2]
[366920873,1750572649812,-490.0,0.00019178,2]
[366920874,1750572649822,-490.0,0.00019178,2]
[366920875,1750572649832,-497.74,0.00019178,2]
[366920876,1750572649842,-490.0,0.00019178,2]
[366920877,1750572649851,-490.0,0.00019178,2]
[366920878,1750572649861,-979.47,0.00019178,2]
[366920879,1750572649870,-490.0,0.00019178,2]
[366920880,1750572649879,-490.0,0.00019178,2]
[366920881,1750572649889,-490.0,0.00019178,2]
[366920882,1750572649898,-1888.91,0.00019178,2]
[366920883,1750572649908,-433.16,0.00019178,2]
[366920884,1750572649918,-2008.68,0.00019178,2]
[366920885,1750572649928,-1081.99,0.00019178,2]
[366920886,1750572649938,-1026.51,0.00019178,2]
[366920887,1750572649948,-491.05501521,0.00019178,2]
[366920888,1750572649959,-490.0,0.00019178,2]
[366920889,1750572649969,-1756.97,0.00019178,2]
[366920890,1750572649979,-490.0,0.00019178,2]
[366920891,1750572649989,-490.0,0.00019178,2]
[366920892,1750572649998,-928.51,0.00019178,2]
[366920893,1750572650008,-490.0,0.00019178,2]
[366920894,1750572650017,-1588.36,0.00019178,2]
[366920895,1750572650027,-490.0,0.00019178,2]
[366920896,1750572650038,-851.51,0.00019178,2]
[366920897,1750572650047,-2202.89,0.00019178,2]
[366920898,1750572650057,-554.73,0.00019178,2]
[366920899,1750572650066,-490.0,0.00019178,2]
[366920900,1750572650075,-2345.56,0.00019178,2]
[366920901,1750572650085,-1585.9,0.00019178,2]
[366920902,1750572650095,-743.81,0.00019178,2]
[366920903,1750572650105,-490.0,0.00019178,2]
[366920904,1750572650115,-536.24,0.00019178,2]
[366920905,1750572650124,-490.0,0.00019178,2]
[366920906,1750572650134,-490.0,0.00019178,2]
[366920907,1750572650144,-1639.01,0.00019178,2]
[366920908,1750572650154,-490.0,0.00019178,2]
[366920909,1750572650163,-2171.41,0.00019178,2]
[366920910,1750572650173,-490.0,0.00019178,2]
[366920911,1750572650182,-490.0,0.00019178,2]
[366920912,1750572650192,-490.0,0.00019178,2]
[366920913,1750572650202,-702.54,0.00019178,2]
[366920914,1750572650211,-1514.22,0.00019178,2]
[366920915,1750572650222,-1350.33,0.00019178,2]
[366920916,1750572650232,-490.0,0.00019178,2]
[366920917,1750572650242,-490.0,0.00019178,2]
[366920918,1750572650251,-490.0,0.00019178,2]
[366920919,1750572650261,-490.0,0.00019178,2]
[366920920,1750572650271,-1332.01,0.00019178,2]
[366920921,1750572650280,-490.0,0.00019178,2]
[366920922,1750572650290,-918.6,0.00019178,2]
[366920923,1750572650299,-490.0,0.00019178,2]
[366920924,1750572650309,-726.16,0.00019178,2]
[366920925,1750572650319,-881.2,0.00019178,2]
[366920926,1750572650330,-838.59,0.00019178,2]
[366920927,1750572650340,-490.0,0.00019178,2]
[366920928,1750572650350,-490.0,0.00019178,2]
[366920929,1750572650359,-490.0,0.00019178,2]
[366920930,1750572650369,-490.0,0.00019178,2]
[366920931,1750572650379,-690.84,0.00019178,2]
[366920932,1750572650388,-490.0,0.00019178,2]
[366920933,1750572650398,-490.0,0.00019178,2]
[366920934,1750572650407,-490.0,0.00019178,2]
[366920935,1750572650417,-490.0,0.00019178,2]
[366920936,1750572650427,-490.0,0.00019178,2]
[366920937,1750572650436,-1084.78,0.00019178,2]
[366920938,1750572650446,-490.0,0.00019178,2]
[366920939,1750572650455,-688.12,0.00019178,2]
[366920940,1750572650465,-490.0,0.00019178,2]
[366920941,1750572650475,-490.0,0.00019178,2]
[366920942,1750572650485,-490.0,0.00019178,2]
[366920943,1750572650495,-983.6,0.00019178,2]
[366920944,1750572650504,-490.0,0.00019178,2]
[366920945,1750572650515,-490.0,0.00019178,2]
[366920946,1750572650526,-490.0,0.00019178,2]
[366920947,1750572650535,-510.0,0.00019178,2]
[366920948,1750572650544,-490.0,0.00019178,2]
[366920949,1750572650554,-559.80179365,0.00019178,2]
[366920950,1750572650565,-733.86,0.00019178,2]
[366920951,1750572650574,-490.0,0.00019178,2]
[366920952,1750572650585,-490.0,0.00019178,2]
[366920953,1750572650597,-490.0,0.00019178,2]
[366920954,1750572650607,-490.0,0.00019178,2]
[366920955,1750572650617,-490.0,0.00019178,2]
[366920956,1750572650627,-490.0,0.00019178,2]
[366920957,1750572650636,-1395.12,0.00019178,2]
[366920958,1750572650646,-490.0,0.00019178,2]
[366920959,1750572650655,-221.05826938,0.00019178,2]
[366920960,1750572650665,-490.0,0.00019178,2]
[366920961,1750572650675,-704.16,0.00019178,2]
[366920962,1750572650684,-490.0,0.00019178,2]
[366920963,1750572650695,-904.0,0.00019178,2]
[366920964,1750572650704,-490.0,0.00019178,2]
[366920965,1750572650714,-490.0,0.00019178,2]
[366920966,1750572650724,-490.0,0.00019178,2]
[366920967,1750572650733,-490.0,0.00019178,2]
[366920968,1750572650742,-493.69085941,0.00019178,2]
[366920969,1750572650751,-490.0,0.00019178,2]
[366920970,1750572650761,-490.0,0.00019178,2]
[366920971,1750572650770,-1050.08,0.00019178,2]
[366920972,1750572650780,-540.53,0.00019178,2]
[366920973,1750572650789,-1061.98,0.00019178,2]
[366920974,1750572650799,-496.14004017,0.00019178,2]
[366920975,1750572650906,-3475.71,0.00019178,2]
[366920976,1750572650917,-708.95,0.00019178,2]
[366920977,1750572650926,-1397.03,0.00019178,2]
[366920978,1750572650935,-490.0,0.00019178,2]
[366920979,1750572650945,-490.0,0.00019178,2]
[366920980,1750572650954,-490.0,0.00019178,2]
[366920981,1750572650964,-490.0,0.00019178,2]
[366920982,1750572650973,-2380.95,0.00019178,2]
[366920983,1750572650983,-490.0,0.00019178,2]
[366920984,1750572650992,-2477.65,0.00019178,2]
[366920985,1750572651001,-490.0,0.00019178,2]
[366920986,1750572651011,-490.0,0.00019178,2]
[366920987,1750572651020,-989.09,0.00019178,2]
[366920988,1750572651029,-490.0,0.00019178,2]
[366920989,1750572651039,-490.0,0.00019178,2]
[366920990,1750572651048,-891.3,0.00019178,2]
[366920991,1750572651058,-1886.35,0.00019178,2]
[366920992,1750572651067,-490.0,0.00019178,2]
[366920993,1750572651076,-490.0,0.00019178,2]
[366920994,1750572651087,-490.0,0.00019178,2]
[366920995,1750572651096,-3068.48,0.00019178,2]
[366920996,1750572651106,-490.0,0.00019178,2]
[366920997,1750572651115,-4199.61,0.00019178,2]
[366920998,1750572651125,-490.0,0.00019178,2]
[366920999,1750572651134,-3099.26,0.00019178,2]
[366921000,1750572651144,-9450.76,0.00019178,2]
[366921001,1750572651153,-490.0,0.00019178,2]
[366921002,1750572651163,-2294.84,0.00019178,2]
[366921003,1750572651172,-490.0,0.00019178,2]
[366921004,1750572651182,-899.57,0.00019178,2]
[366921005,1750572651191,-490.0,0.00019178,2]
[366921006,1750572651201,-495.88759374,0.00019178,2]
[366921007,1750572651211,-490.0,0.00019178,2]
[366921008,1750572651221,-3432.88,0.00019178,2]
[366921009,1750572651230,-490.0,0.00019178,2]
[366921010,1750572651240,-490.0,0.00019178,2]
[366921011,1750572651249,-490.0,0.00019178,2]
[366921012,1750572651259,-490.0,0.00019178,2]
[366921013,1750572651269,-1654.46,0.00019178,2]
[366921014,1750572651280,-490.0,0.00019178,2]
[366921015,1750572651290,-490.0,0.00019178,2]
[366921016,1750572651299,-1742.93,0.00019178,2]
[366921017,1750572651309,-490.0,0.00019178,2]
[366921018,1750572651318,-284.97070251,0.00019178,2]
[366921019,1750572651328,-490.0,0.00019178,2]
[366921020,1750572651338,-511.89726798,0.00019178,2]
[366921021,1750572651348,-693.3,0.00019178,2]
[366921022,1750572651358,-1941.54,0.00019178,2]
[366921023,1750572651367,-490.0,0.00019178,2]
[366921024,1750572651377,-1449.37,0.00019178,2]
[366921025,1750572651387,-490.0,0.00019178,2]
[366921026,1750572651396,-621.64,0.00019178,2]
[366921027,1750572651406,-2177.26,0.00019178,2]
[366921028,1750572651415,-151.0,0.00019178,2]
[366921029,1750572651425,-1132.73,0.00019178,2]
[366921030,1750572651435,-491.61818048,0.00019178,2]
[366921031,1750572651444,-490.0,0.00019178,2]
[366921032,1750572651454,-804.58,0.00019178,2]
[366921033,1750572651463,-6435.6,0.00019178,2]
[366921034,1750572651472,-1963.46,0.00019178,2]
[366921035,1750572651482,-4347.78,0.00019178,2]
[366921036,1750572651492,-490.0,0.00019178,2]
[366921037,1750572651501,-490.0,0.00019178,2]
[366921038,1750572651510,-490.0,0.00019178,2]
[366921039,1750572651524,-1098.32,0.00019178,2]
[366921040,1750572651534,-1596.54,0.00019178,2]
[366921041,1750572651544,-1979.77,0.00019178,2]
[366921042,1750572651553,-2500.16,0.00019178,2]
[366921043,1750572651563,-2602.92,0.00019178,2]
[366921044,1750572651573,-490.0,0.00019178,2]
[366921045,1750572651583,-490.0,0.00019178,2]
[366921046,1750572651593,-913.85,0.00019178,2]
[366921047,1750572651604,-1249.51,0.00019178,2]
[366921048,1750572651614,-490.0,0.00019178,2]
[366921049,1750572651624,-490.0,0.00019178,2]
[366921050,1750572651633,-2036.42,0.00019178,2]
[366921051,1750572651642,-490.0,0.00019178,2]
[366921052,1750572651651,-490.0,0.00019178,2]
[366921053,1750572651661,-490.0,0.00019178,2]
[366921054,1750572651670,-2958.29,0.00019178,2]
[366921055,1750572651679,-490.0,0.00019178,2]
[366921056,1750572651689,-1468.73,0.00019178,2]
[366921057,1750572651698,-1959.59,0.00019178,2]
[366921058,1750572651707,-4276.69,0.00019178,2]
[366921059,1750572651716,-414.81169065,0.00019178,2]
[366921060,1750572651726,-1027.5,0.00019178,2]
[366921061,1750572651735,-1516.53,0.00019178,2]
[366921062,1750572651745,-490.0,0.00019178,2]
[366921063,1750572651754,-490.0,0.00019178,2]
[366921064,1750572651763,-811.32,0.00019178,2]
[366921065,1750572651772,-2294.68,0.00019178,2]
[366921066,1750572651780,-3082.34,0.00019178,2]
[366921067,1750572651789,-511.26966123,0.00019178,2]
[366921068,1750572651799,-490.0,0.00019178,2]
[366921069,1750572651808,-490.0,0.00019178,2]
[366921070,1750572651817,-23451.66,0.00019178,2]
[366921071,1750572651827,-2032.54,0.00019178,2]
[366921072,1750572651836,-490.0,0.00019178,2]
[366921073,1750572651845,-490.0,0.00019178,2]
[366921074,1750572651854,-490.0,0.00019178,2]
[366921075,1750572651864,-581.61,0.00019178,2]
[366921076,1750572651873,-576.70432712,0.00019178,2]
[366921077,1750572651883,-8553.75,0.00019178,2]
[366921078,1750572651892,-2015.31,0.00019178,2]
[366921079,1750572651901,-701.25,0.00019178,2]
[366921080,1750572651911,-7435.41,0.00019178,2]
[366921081,1750572651920,-490.0,0.00019178,2]
[366921082,1750572651930,-2327.25,0.00019178,2]
[366921083,1750572651939,-2180.69,0.00019178,2]
[366921084,1750572651948,-490.0,0.00019178,2]
[366921085,1750572651958,-490.0,0.00019178,2]
[366921086,1750572651967,-490.0,0.00019178,2]
[366921087,1750572651976,-490.0,0.00019178,2]
[366921088,1750572651986,-490.0,0.00019178,2]
[366921089,1750572651995,-1956.06,0.00019178,2]
[366921090,1750572652005,-490.0,0.00019178,2]
[366921091,1750572652016,-661.11,0.00019178,2]
[366921092,1750572652026,-723.13,0.00019178,2]
[366921093,1750572652036,-490.0,0.00019178,2]
[366921094,1750572652045,-490.0,0.00019178,2]
[366921095,1750572652055,-39231.38,0.00019178,2]
[366921096,1750572652064,-490.0,0.00019178,2]
[366921097,1750572652074,-1375.26,0.00019178,2]
[366921098,1750572652083,-490.0,0.00019178,2]
[366921099,1750572652093,-9659.99,0.00019178,2]
[366921100,1750572652102,-688.07,0.00019178,2]
[366921101,1750572652111,-1007.41,0.00019178,2]
[366921102,1750572652121,-3968.17,0.00019178,2]
[366921103,1750572652130,-1455.05,0.00019178,2]
[366921104,1750572652139,-183.95460938,0.00019178,2]
[366921105,1750572652149,-490.0,0.00019178,2]
[366921106,1750572652159,-1913.28,0.00019178,2]
[366921107,1750572652169,-13146.02,0.00019178,2]
[366921108,1750572652178,-490.0,0.00019178,2]
[366921109,1750572652187,-490.0,0.00019178,2]
[366921110,1750572652197,-490.0,0.00019178,2]
[366921111,1750572652207,-490.0,0.00019178,2]
[366921112,1750572652216,-490.0,0.00019178,2]
[366921113,1750572652225,-1016.59,0.00019178,2]
[366921114,1750572652235,-490.0,0.00019178,2]
[366921115,1750572652244,-490.0,0.00019178,2]
[366921116,1750572652253,-490.0,0.00019178,2]
[366921117,1750572652263,-4978.03,0.00019178,2]
[366921118,1750572652272,-490.0,0.00019178,2]
[366921119,1750572652282,-1214.45,0.00019178,2]
[366921120,1750572652291,-2500.86,0.00019178,2]
[366921121,1750572652300,-490.0,0.00019178,2]
[366921122,1750572652310,-490.0,0.00019178,2]
[366921123,1750572652319,-490.0,0.00019178,2]
[366921124,1750572652330,-4703.42,0.00019178,2]
[366921125,1750572652341,-594.79,0.00019178,2]
[366921126,1750572652351,-2770.95,0.00019178,2]
[366921127,1750572652374,-8043.53,0.00019178,2]
[366921128,1750572652385,-490.0,0.00019178,2]
[366921129,1750572652394,-1000.0,0.00019178,2]
[366921130,1750572652404,-490.0,0.00019178,2]
[366921131,1750572652414,-1952.95,0.00019178,2]
[366921132,1750572652423,-2345.98,0.00019178,2]
[366921133,1750572652432,-490.0,0.00019178,2]
[366921134,1750572652441,-490.0,0.00019178,2]
[366921135,1750572652451,-490.0,0.00019178,2]
[366921136,1750572652460,-1609.7,0.00019178,2]
[366921137,1750572652469,-490.0,0.00019178,2]
[366921138,1750572652478,-490.0,0.00019178,2]
[366921139,1750572652488,-490.0,0.00019178,2]
[366921140,1750572652497,-8848.59,0.00019178,2]
[366921141,1750572652507,-490.0,0.00019178,2]
[366921142,1750572652518,-1984.9,0.00019178,2]
[366921143,1750572652527,-2112.04,0.00019178,2]
[366921144,1750572652536,-490.0,0.00019178,2]
[366921145,1750572652546,-490.0,0.00019178,2]
[366921146,1750572652555,-490.0,0.00019178,2]
[366921147,1750572652565,-2943.19,0.00019178,2]
[366921148,1750572652574,-639.7,0.00019178,2]
[366921149,1750572652584,-490.0,0.00019178,2]
[366921150,1750572652595,-490.0,0.00019178,2]
[366921151,1750572652604,-494.26325876,0.00019178,2]
[366921152,1750572652614,-490.0,0.00019178,2]
[366921153,1750572652625,-6441.66,0.00019178,2]
[366921154,1750572652635,-817.06,0.00019178,2]
[366921155,1750572652647,-2742.99,0.00019178,2]
[366921156,1750572652657,-490.0,0.00019178,2]
[366921157,1750572652666,-1997.85,0.00019178,2]
[366921158,1750572652675,-490.0,0.00019178,2]
[366921159,1750572652685,-490.0,0.00019178,2]
[366921160,1750572652695,-490.0,0.00019178,2]
[366921161,1750572652704,-2830.83,0.00019178,2]
[366921162,1750572652714,-490.0,0.00019178,2]
[366921163,1750572652723,-490.0,0.00019178,2]
[366921164,1750572652732,-490.0,0.00019178,2]
[366921165,1750572652742,-1417.79,0.00019178,2]
[366921166,1750572652751,-857.37,0.00019178,2]
[366921167,1750572652761,-1024.6,0.00019178,2]
[366921168,1750572652770,-490.0,0.00019178,2]
[366921169,1750572652780,-490.0,0.00019178,2]
[366921170,1750572652790,-447.70510549,0.00019178,2]
[366921171,1750572652800,-490.0,0.00019178,2]
[366921172,1750572652809,-20454.81,0.00019178,2]
[366921173,1750572652820,-490.0,0.00019178,2]
[366921174,1750572652829,-770.4,0.00019178,2]
[366921175,1750572652840,-881.74,0.00019178,2]
[366921176,1750572652849,-2533.35,0.00019178,2]
[366921177,1750572652858,-3219.03,0.00019178,2]
[366921178,1750572652868,-490.0,0.00019178,2]
[366921179,1750572652877,-490.0,0.00019178,2]
[366921180,1750572652887,-4790.73,0.00019178,2]
[366921181,1750572652896,-2153.93,0.00019178,2]
[366921182,1750572652906,-490.0,0.00019178,2]
[366921183,1750572652916,-500.0,0.00019178,2]
[366921184,1750572652925,-909.44,0.00019178,2]
[366921185,1750572652941,-500.0,0.00019178,2]
[366921186,1750572652950,-500.0,0.00019178,2]
[366921187,1750572652960,-500.0,0.00019178,2]
[366921188,1750572652970,-537.32,0.00019178,2]
[366921189,1750572652979,-500.0,0.00019178,2]
[366921190,1750572652989,-227.09963767,0.00019178,2]
[366921191,1750572652998,-490.0,0.00019178,2]
[366921192,1750572653008,-734.85,0.00019178,2]
[366921193,1750572653019,-1026.3,0.00019178,2]
[366921194,1750572653029,-3960.37,0.00019178,2]
[366921195,1750572653039,-490.0,0.00019178,2]
[366921196,1750572653052,-490.0,0.00019178,2]
[366921197,1750572653063,-152.532004,0.00019178,2]
[366921198,1750572653073,-490.0,0.00019178,2]
[366921199,1750572653083,-842.48,0.00019178,2]
[366921200,1750572653092,-4578.23,0.00019178,2]
[366921201,1750572653102,-157.22631297,0.00019178,2]
[366921202,1750572653112,-490.0,0.00019178,2]
[366921203,1750572653122,-674.65,0.00019178,2]
[366921204,1750572653132,-1589.34,0.00019178,2]
[366921205,1750572653142,-738.33,0.00019178,2]
[366921206,1750572653151,-490.0,0.00019178,2]
[366921207,1750572653161,-752.32,0.00019178,2]
[366921208,1750572653171,-1908.66,0.00019178,2]
[366921209,1750572653182,-490.0,0.00019178,2]
[366921210,1750572653191,-490.0,0.00019178,2]
[366921211,1750572653201,-592.22,0.00019178,2]
[366921212,1750572653210,-334.67312333,0.00019178,2]
[366921213,1750572653219,-4807.34,0.00019178,2]
[366921214,1750572653231,-490.0,0.00019178,2]
[366921215,1750572653240,-4073.47,0.00019178,2]
[366921216,1750572653250,-490.0,0.00019178,2]
[366921217,1750572653259,-2366.06,0.00019178,2]
[366921218,1750572653269,-2624.73,0.00019178,2]
[366921219,1750572653279,-2750.53,0.00019178,2]
[366921220,1750572653289,-490.0,0.00019178,2]
[366921221,1750572653298,-337.7212436,0.00019178,2]
[366921222,1750572653307,-2361.97,0.00019178,2]
[366921223,1750572653319,-490.0,0.00019178,2]
[366921224,1750572653328,-901.49,0.00019178,2]
[366921225,1750572653338,-1163.98,0.00019178,2]
[366921226,1750572653348,-926.77,0.00019178,2]
[366921227,1750572653358,-490.0,0.00019178,2]
[366921228,1750572653368,-6154.42,0.00019178,2]
[366921229,1750572653378,-490.0,0.00019178,2]
[366921230,1750572653388,-3284.91,0.00019178,2]
[366921231,1750572653398,-490.0,0.00019178,2]
[366921232,1750572653408,-490.0,0.00019178,2]
[366921233,1750572653418,-490.0,0.00019178,2]
[366921234,1750572653428,-970.91,0.00019178,2]
[366921235,1750572653437,-490.0,0.00019178,2]
[366921236,1750572653447,-490.0,0.00019178,2]
[366921237,1750572653456,-2540.36,0.00019178,2]
[366921238,1750572653466,-3174.15,0.00019178,2]
[366921239,1750572653475,-3548.39,0.00019178,2]
[366921240,1750572653485,-308.31302982,0.00019178,2]
[366921241,1750572653494,-2011.63,0.00019178,2]
[366921242,1750572653504,-549.74640081,0.00019178,2]
[366921243,1750572653515,-490.0,0.00019178,2]
[366921244,1750572653527,-490.0,0.00019178,2]
[366921245,1750572653536,-500.0,0.00019178,2]
[366921246,1750572653546,-500.0,0.00019178,2]
[366921247,1750572653558,-1344.86,0.00019178,2]
[366921248,1750572653569,-1344.86,0.00019178,2]
[366921249,1750572653579,-500.0,0.00019178,2]
[366921250,1750572653590,-3697.78,0.00019178,2]
[366921251,1750572653600,-8526.49,0.00019178,2]
[366921252,1750572653610,-490.0,0.00019178,2]
[366921253,1750572653620,-1344.86,0.00019178,2]
[366921254,1750572653630,-500.0,0.00019178,2]
[366921255,1750572653640,-1344.86,0.00019178,2]
[366921256,1750572653650,-500.0,0.00019178,2]
[366921257,1750572653660,-11502.56,0.00019178,2]
[366921258,1750572653669,-1344.86,0.00019178,2]
[366921259,1750572653679,-500.0,0.00019178,2]
[366921260,1750572653689,-500.0,0.00019178,2]
[366921261,1750572653698,-1344.86,0.00019178,2]
[366921262,1750572653708,-490.0,0.00019178,2]
[366921263,1750572653717,-500.0,0.00019178,2]
[366921264,1750572653727,-2138.14,0.00019178,2]
[366921265,1750572653736,-1344.86,0.00019178,2]
[366921266,1750572653746,-490.0,0.00019178,2]
[366921267,1750572653756,-1344.86,0.00019178,2]
[366921268,1750572653766,-726.79,0.00019178,2]
[366921269,1750572653776,-939.03,0.00019178,2]
[366921270,1750572653785,-1090.28,0.00019178,2]
[366921271,1750572653795,-490.0,0.00019178,2]
[366921272,1750572653805,-874.72,0.00019178,2]
[366921273,1750572653815,-2786.25,0.00019178,2]
[366921274,1750572653824,-4243.88,0.00019178,2]
[366921275,1750572653835,-490.0,0.00019178,2]
[366921276,1750572653846,-1230.9,0.00019178,2]
[366921277,1750572653856,-490.0,0.00019178,2]
[366921278,1750572653865,-490.0,0.00019178,2]
[366921279,1750572653875,-490.0,0.00019178,2]
[366921280,1750572653885,-8322.86,0.00019178,2]
[366921281,1750572653895,-4109.05,0.00019178,2]
[366921282,1750572653907,-4109.05,0.00019178,2]
[366921283,1750572653917,-4109.05,0.00019178,2]
[366921284,1750572653927,-4109.05,0.00019178,2]
[366921285,1750572653937,-4109.05,0.00019178,2]
[366921286,1750572653948,-2766.56,0.00019178,2]
[366921287,1750572653959,-1148.58,0.00019178,2]
[366921288,1750572653970,-4109.05,0.00019178,2]
[366921289,1750572653981,-5586.77,0.00019178,2]
[366921290,1750572653993,-506.12,0.00019178,2]
[366921291,1750572654003,-490.0,0.00019178,2]
[366921292,1750572654013,-490.0,0.00019178,2]
[366921293,1750572654024,-789.6,0.00019178,2]
[366921294,1750572654034,-490.0,0.00019178,2]
[366921295,1750572654044,-5553.54,0.00019178,2]
[366921296,1750572654055,-490.0,0.00019178,2]
[366921297,1750572654065,-1419.06,0.00019178,2]
[366921298,1750572654075,-5737.88,0.00019178,2]
[366921299,1750572654084,-492.52956195,0.00019178,2]
[366921300,1750572654094,-1071.67,0.00019178,2]
[366921301,1750572654104,-2406.55,0.00019178,2]
[366921302,1750572654114,-1875.58,0.00019178,2]
[366921303,1750572654124,-490.0,0.00019178,2]
[366921304,1750572654135,-2715.25,0.00019178,2]
[366921305,1750572654146,-540.76,0.00019178,2]
[366921306,1750572654156,-490.0,0.00019178,2]
[366921307,1750572654166,-860.31,0.00019178,2]
[366921308,1750572654176,-1137.98,0.00019178,2]
[366921309,1750572654186,-411.21747165,0.00019178,2]
[366921310,1750572654196,-3597.11,0.00019178,2]
[366921311,1750572654206,-490.0,0.00019178,2]
[366921312,1750572654216,-588.69,0.00019178,2]
[366921313,1750572654226,-11920.71,0.00019178,2]
[366921314,1750572654236,-1555.82,0.00019178,2]
[366921315,1750572654246,-490.0,0.00019178,2]
[366921316,1750572654256,-490.0,0.00019178,2]
[366921317,1750572654265,-490.0,0.00019178,2]
[366921318,1750572654277,-490.0,0.00019178,2]
[366921319,1750572654287,-490.0,0.00019178,2]
[366921320,1750572654296,-1570.08,0.00019178,2]
[366921321,1750572654307,-7981.75,0.00019178,2]
[366921322,1750572654317,-955.28,0.00019178,2]
[366921323,1750572654327,-490.0,0.00019178,2]
[366921324,1750572654337,-490.0,0.00019178,2]
[366921325,1750572654347,-1477.71,0.00019178,2]
[366921326,1750572654358,-4696.88,0.00019178,2]
[366921327,1750572654368,-3066.94,0.00019178,2]
[366921328,1750572654378,-897.7,0.00019178,2]
[366921329,1750572654388,-1804.45,0.00019178,2]
[366921330,1750572654397,-490.0,0.00019178,2]
[366921331,1750572654407,-957.25,0.00019178,2]
[366921332,1750572654417,-490.0,0.00019178,2]
[366921333,1750572654427,-2763.17,0.00019178,2]
[366921334,1750572654436,-490.0,0.00019178,2]
[366921335,1750572654446,-1650.8,0.00019178,2]
[366921336,1750572654455,-2091.82,0.00019178,2]
[366921337,1750572654466,-490.0,0.00019178,2]
[366921338,1750572654476,-490.0,0.00019178,2]
[366921339,1750572654486,-2457.08,0.00019178,2]
[366921340,1750572654495,-490.0,0.00019178,2]
[366921341,1750572654506,-490.0,0.00019178,2]